bitfinex/quotes_ETHUSD_20250326
["timestamp","ask_amount","ask_price","bid_price","bid_amount"]
[1742984562126,4.82999,2070.4,2070.1,5.56650528]
[1742984562327,0.1406297,2070.2,2070.1,5.56650528]
[1742984562551,6.07372249,2070.4,2070.1,5.56650528]
[1742984562746,0.1406297,2070.2,2070.1,0.95250528]
[1742984562954,12.43725486,2070.5,2070.1,5.56450528]
[1742984563138,0.1406297,2070.2,2070.1,5.56450528]
[1742984563341,7.60733486,2070.5,2070.1,5.56450528]
[1742984563674,6.83705749,2070.5,2070.1,10.39517528]
[1742984563980,0.14084001,2070.4,2070.1,10.39517528]
[1742984564130,0.14084001,2070.4,2070.1,5.56450528]
[1742984565122,0.14084001,2070.4,2070.1,10.39517528]
[1742984565325,0.14084001,2070.4,2070.1,11.17007528]
[1742984565663,0.14084001,2070.4,2070.1,11.16995528]
[1742984566027,5.61173,2070.6,2070.1,11.16993528]
[1742984566226,0.13877923,2070.5,2070.1,16.00048528]
[1742984566423,0.13877923,2070.5,2070.1,16.00053528]
[1742984566653,0.13877923,2070.5,2070.1,16.00052528]
[1742984566823,0.13877923,2070.5,2070.1,16.00047528]
[1742984567358,0.13877923,2070.5,2070.1,16.00046528]
[1742984567752,0.13877923,2070.5,2070.1,16.00052528]
[1742984567953,0.13877923,2070.5,2070.2,4.83041]
[1742984568365,0.13877923,2070.5,2070.1,11.16999528]
[1742984568570,0.13877923,2070.5,2070.2,4.83043]
[1742984572098,0.13877923,2070.5,2070.1,11.16994528]
[1742984572798,0.13877923,2070.5,2070.2,4.83044]
[1742984573796,0.13877923,2070.5,2070.1,11.16994528]
[1742984574400,4.96853923,2070.5,2070.1,11.16994528]
[1742984578000,4.96853923,2070.5,2070.1,10.39504528]
[1742984578705,0.13877923,2070.5,2070.1,15.22563528]
[1742984578903,0.13877923,2070.5,2070.1,15.22559528]
[1742984579074,0.13877923,2070.5,2070.1,10.39504528]
[1742984579702,0.13877923,2070.5,2070.1,15.22558528]
[1742984580506,0.13877923,2070.5,2070.1,10.39504528]
[1742984581702,0.13877923,2070.5,2070.1,10.39503528]
[1742984582399,0.13877923,2070.5,2070.1,15.22557528]
[1742984582710,0.13877923,2070.5,2070.3,0.7973]
[1742984583013,0.13877923,2070.5,2070.4,4.82998]
[1742984583169,5.61367,2070.8,2070.4,4.82998]
[1742984583370,0.12780962,2070.5,2070.4,4.82998]
[1742984583610,5.61367,2070.8,2070.4,4.82998]
[1742984583916,6.657927,2070.8,2070.4,4.82998]
[1742984584066,5.61367,2070.8,2070.4,4.82998]
[1742984584506,0.7846,2070.8,2070.4,4.82998]
[1742984584803,4.82796,2071.3,2070.8,4.8289]
[1742984584969,0.8052,2071.2,2070.9,4.82871]
[1742984585401,0.8052,2071.2,2070.8,6.59796486]
[1742984585869,0.8268,2071.4,2070.8,6.59796486]
[1742984586482,0.8268,2071.4,2070.9,0.7904]
[1742984586701,0.13018599,2071.3,2070.9,0.7904]
[1742984587002,0.13018599,2071.3,2071.0,2.01396486]
[1742984587211,0.7664,2071.2,2070.4,0.7904]
[1742984587382,0.7664,2071.2,2070.7,0.7904]
[1742984587582,0.7664,2071.2,2070.8,4.584]
[1742984587783,0.12958162,2071.1,2070.8,4.584]
[1742984591590,0.12958162,2071.1,2070.8,5.32283649]
[1742984592611,0.12958162,2071.1,2070.8,5.37112222]
[1742984592913,0.7911,2071.4,2070.8,5.37112222]
[1742984593109,0.1331287,2071.0,2070.8,5.37112222]
[1742984593319,0.7911,2071.4,2070.8,5.37112222]
[1742984593474,0.7911,2071.4,2071.0,4.82857]
[1742984593896,2.0062505,2071.4,2071.0,4.82857]
[1742984594420,2.0062505,2071.4,2070.8,4.614]
[1742984594421,2.82026486,2071.3,2070.8,4.614]
[1742984595917,0.12201974,2071.2,2070.8,4.614]
[1742984596494,2.82026486,2071.3,2070.8,4.614]
[1742984596695,0.12189007,2071.1,2070.8,4.614]
[1742984596982,0.12197045,2071.2,2070.8,4.614]
[1742984597182,0.12176039,2071.0,2070.8,4.614]
[1742984597380,2.82026486,2071.3,2070.8,4.614]
[1742984597697,0.28202649,2071.2,2070.8,4.614]
[1742984598013,0.40394766,2071.2,2070.8,4.614]
[1742984600019,5.23206766,2071.2,2070.8,4.614]
[1742984600317,5.23206766,2071.2,2070.6,4.82934]
[1742984600615,0.7921,2071.0,2070.9,4.604]
[1742984601019,0.91388514,2071.0,2070.9,4.604]
[1742984601312,0.12178514,2071.0,2070.9,4.604]
[1742984601686,5.93104649,2071.2,2070.9,4.604]
[1742984601887,1.01190709,2071.1,2070.9,4.604]
[1742984604618,0.12189018,2071.1,2070.9,4.604]
[1742984604785,0.12189018,2071.1,2071.0,4.82858]
[1742984604987,0.12189018,2071.1,2071.0,5.64278]
[1742984605188,6.84145486,2071.5,2071.1,4.82833]
[1742984605189,2.01396486,2071.5,2071.1,4.82833]
[1742984605414,5.60632,2071.6,2071.1,4.82817]
[1742984606025,5.60632,2071.6,2071.1,19.32817]
[1742984606230,5.60632,2071.6,2071.1,4.82817]
[1742984606729,5.60632,2071.6,2071.1,19.32817]
[1742984606930,5.60632,2071.6,2071.1,22.285663]
[1742984607734,5.60632,2071.6,2071.1,27.113873]
[1742984608234,0.779,2071.6,2071.2,4.82805]
[1742984608433,0.779,2071.6,2071.1,17.457493]
[1742984608621,0.12211032,2071.5,2071.1,17.457493]
[1742984609652,0.12211032,2071.5,2071.2,1.8271693]
[1742984609856,0.12211032,2071.5,2071.0,2.82816486]
[1742984610225,5.01396486,2071.7,2071.0,17.32816486]
[1742984610432,0.12278362,2071.4,2071.0,17.32816486]
[1742984610735,0.1226786,2071.3,2071.1,0.04827832]
[1742984610931,0.1226786,2071.3,2071.2,2.80426486]
[1742984611253,0.7627,2071.8,2071.2,3.08951918]
[1742984611448,0.12296231,2071.3,2071.2,17.58951918]
[1742984611626,0.7627,2071.8,2071.2,17.58951918]
[1742984611941,0.12421303,2071.7,2071.2,17.58951918]
[1742984612306,5.39243521,2071.9,2071.2,17.58951918]
[1742984612507,5.39243521,2071.9,2071.5,4.8272]
[1742984612508,0.12410807,2071.6,2071.5,4.8272]
[1742984612708,2.39243521,2071.9,2071.5,9.4182]
[1742984612907,0.12437855,2071.6,2071.5,9.4182]
[1742984613107,2.39243521,2071.9,2071.5,14.24549]
[1742984613309,2.39243521,2071.9,2071.5,9.4182]
[1742984613511,0.12468706,2071.8,2071.5,9.4182]
[1742984614440,0.12468706,2071.8,2071.5,11.09551919]
[1742984614610,0.12468706,2071.8,2071.5,15.92273919]
[1742984614818,0.12468706,2071.8,2071.5,11.09551919]
[1742984615019,0.12468706,2071.8,2071.5,25.59551919]
[1742984616219,0.12468706,2071.8,2071.5,15.92279919]
[1742984616423,0.12468706,2071.8,2071.5,11.09551919]
[1742984616737,0.12468706,2071.8,2071.5,6.26831919]
[1742984617618,0.12468706,2071.8,2071.5,11.09571919]
[1742984619139,0.12468706,2071.8,2071.5,6.26831919]
[1742984621458,0.12468706,2071.8,2071.5,11.09568919]
[1742984623234,0.12468706,2071.8,2071.5,15.92299919]
[1742984623434,0.12468706,2071.8,2071.6,2.40401393]
[1742984624645,0.12468706,2071.8,2071.6,7.23109393]
[1742984626014,0.12468706,2071.8,2071.6,7.23104393]
[1742984626220,0.12468706,2071.8,2071.7,4.82695]
[1742984627152,0.12468706,2071.8,2071.7,19.32695]
[1742984628153,0.12468706,2071.8,2071.7,21.37115624]
[1742984628326,0.12468706,2071.8,2071.7,22.12335624]
[1742984630958,2.39243521,2071.9,2071.8,4.82672]
[1742984631317,2.52078354,2071.9,2071.8,4.82672]
[1742984631553,2.52078354,2071.9,2071.8,19.32672]
[1742984631760,2.52078354,2071.9,2071.8,21.00403919]
[1742984634127,0.12834833,2071.9,2071.8,21.00403919]
[1742984634327,4.82562,2072.3,2071.8,21.00403919]
[1742984634556,0.12846469,2071.9,2071.8,21.00403919]
[1742984634733,4.82583,2072.2,2071.8,21.00403919]
[1742984634938,4.82583,2072.2,2071.9,1.62071393]
[1742984635149,4.82583,2072.2,2072.0,4.56]
[1742984637330,0.7864,2072.1,2072.0,4.56]
[1742984637556,5.61242,2072.1,2072.0,4.56]
[1742984638060,0.9154004,2072.1,2072.0,4.56]
[1742984638671,0.1290004,2072.1,2072.0,4.56]
[1742984641384,5.64674,2072.3,2072.0,5.981294]
[1742984641385,5.64675,2072.3,2072.0,5.981294]
[1742984641548,0.12953491,2072.1,2072.0,4.56]
[1742984641734,5.64675,2072.3,2072.0,4.56]
[1742984641934,0.12948567,2072.1,2072.0,4.56]
[1742984642133,5.64675,2072.3,2072.0,4.56]
[1742984642134,4.82581,2072.2,2072.0,4.56]
[1742984642438,0.12951029,2072.1,2072.0,4.56]
[1742984642748,12.48640486,2072.3,2072.0,4.56]
[1742984642964,0.12951029,2072.1,2072.0,4.56]
[1742984643205,12.48642486,2072.3,2072.0,4.56]
[1742984643479,0.12951029,2072.1,2072.0,4.56]
[1742984643680,12.48642486,2072.3,2072.0,4.56]
[1742984643850,0.12948567,2072.1,2072.0,4.56]
[1742984644492,12.48642486,2072.3,2072.0,4.56]
[1742984644781,4.8258,2072.2,2072.0,4.56]
[1742984645080,4.9554152,2072.2,2072.0,4.56]
[1742984650984,6.08230333,2072.2,2072.0,4.56]
[1742984651297,0.1296152,2072.2,2072.0,4.56]
[1742984651594,1.12688813,2072.3,2072.0,4.56]
[1742984651880,0.12951029,2072.1,2072.0,4.56]
[1742984652080,5.95243813,2072.3,2072.0,5.3788]
[1742984652273,0.12953494,2072.1,2072.0,5.3788]
[1742984652471,1.12688813,2072.3,2072.0,5.3788]
[1742984652787,4.82535,2072.4,2072.0,10.20501]
[1742984653092,0.12939372,2072.2,2072.0,10.20501]
[1742984653254,1.12688813,2072.3,2072.0,10.20501]
[1742984653682,0.12934437,2072.2,2072.0,5.3788]
[1742984653993,1.12688813,2072.3,2072.0,19.8788]
[1742984654169,0.12926407,2072.1,2072.0,19.8788]
[1742984654369,1.12688813,2072.3,2072.0,22.831992]
[1742984654553,0.12928873,2072.1,2072.0,19.8788]
[1742984654988,1.12688813,2072.3,2072.0,19.8788]
[1742984655186,0.12743039,2072.1,2072.0,19.8788]
[1742984655393,1.12688813,2072.3,2072.0,19.8788]
[1742984655585,0.12751065,2072.2,2072.0,19.8788]
[1742984655791,5.95223813,2072.4,2072.0,22.46200281]
[1742984655954,0.12740574,2072.1,2072.0,22.46200281]
[1742984656392,5.95223813,2072.4,2072.0,27.28825281]
[1742984656597,0.12740574,2072.1,2072.0,22.46200281]
[1742984656769,1.12688813,2072.3,2072.0,22.46200281]
[1742984656969,0.12745505,2072.1,2072.0,22.46200281]
[1742984657180,1.12688813,2072.3,2072.0,22.46200281]
[1742984657378,1.12688813,2072.3,2072.1,4.54]
[1742984658789,1.12688813,2072.3,2072.1,12.571185]
[1742984660100,1.12688813,2072.4,2072.1,15.33022155]
[1742984660796,1.12688813,2072.4,2072.1,20.15614155]
[1742984664797,0.12878918,2072.3,2072.1,15.33022155]
[1742984665305,0.12878918,2072.3,2072.1,29.83022155]
[1742984666903,1.12688813,2072.4,2072.1,29.83022155]
[1742984667108,0.12868428,2072.2,2072.1,29.83022155]
[1742984667309,1.12688813,2072.4,2072.1,29.83022155]
[1742984667486,0.12868428,2072.2,2072.1,29.83022155]
[1742984667686,1.12688813,2072.4,2072.1,29.83022155]
[1742984667992,4.82511,2072.5,2072.2,2.58320281]
[1742984668302,1.25574843,2072.4,2072.2,2.58320281]
[1742984669676,6.08106843,2072.4,2072.1,27.071185]
[1742984669921,1.25574843,2072.4,2072.1,27.071185]
[1742984670389,1.25574843,2072.4,2072.1,12.571185]
[1742984673247,6.08107843,2072.4,2072.1,12.571185]
[1742984673386,1.25574843,2072.4,2072.1,12.571185]
[1742984674402,0.1288603,2072.4,2072.1,19.7013665]
[1742984675880,1.25574843,2072.4,2072.1,14.8754065]
[1742984676082,1.25574843,2072.4,2072.1,12.571185]
[1742984677010,1.25574843,2072.4,2072.1,17.397135]
[1742984677193,0.1288603,2072.4,2072.2,4.82569]
[1742984677402,5.95155813,2072.7,2072.3,0.7619]
[1742984677811,0.12944169,2072.6,2072.3,0.7619]
[1742984678016,1.25632982,2072.6,2072.3,2.69046631]
[1742984678315,1.25632982,2072.6,2072.3,7.51601631]
[1742984678503,1.25632982,2072.6,2072.3,2.69046631]
[1742984679522,1.25632982,2072.6,2072.3,0.7619]
[1742984679921,1.12688813,2072.5,2072.3,0.7619]
[1742984680417,0.12964374,2072.4,2072.3,0.7619]
[1742984680938,0.12964374,2072.4,2072.2,4.82569]
[1742984683142,0.12964374,2072.4,2072.1,18.169375]
[1742984683344,0.12964374,2072.4,2072.1,20.58162231]
[1742984683544,0.12964374,2072.4,2072.1,25.40751231]
[1742984684132,1.12688813,2072.5,2072.1,25.40751231]
[1742984684440,0.13015051,2072.4,2072.1,25.40751231]
[1742984684641,1.12688813,2072.5,2072.1,25.40751231]
[1742984684810,0.13004562,2072.3,2072.1,25.40751231]
[1742984685012,1.12688813,2072.5,2072.2,2.65344004]
[1742984685219,1.12688813,2072.5,2072.1,22.995295]
[1742984685437,0.13015051,2072.4,2072.1,22.995295]
[1742984685636,0.13015051,2072.4,2072.1,18.169375]
[1742984685841,1.12688813,2072.2,2072.1,8.031185]
[1742984686039,1.94565273,2072.2,2072.1,8.031185]
[1742984686248,1.25675487,2072.2,2072.1,8.031185]
[1742984687063,0.12986674,2072.2,2072.1,8.031185]
[1742984687343,5.95221813,2072.4,2072.1,8.031185]
[1742984687550,0.12975898,2072.2,2072.1,8.031185]
[1742984687713,5.95221813,2072.4,2072.1,8.031185]
[1742984687908,0.12975898,2072.2,2072.1,8.031185]
[1742984688249,1.12688813,2072.3,2072.1,8.031185]
[1742984688450,0.12975898,2072.2,2072.1,8.031185]
[1742984688654,5.95244813,2072.3,2072.1,8.031185]
[1742984688949,0.12975898,2072.2,2072.1,8.031185]
[1742984689348,1.12688813,2072.3,2072.1,8.031185]
[1742984689652,0.12978364,2072.2,2072.1,8.031185]
[1742984689952,1.12688813,2072.3,2072.1,8.031185]
[1742984690149,0.12978364,2072.2,2072.1,8.031185]
[1742984690453,1.12688813,2072.3,2072.1,8.031185]
[1742984690658,0.12978364,2072.2,2072.1,8.031185]
[1742984690833,0.12978364,2072.2,2072.1,9.8514915]
[1742984691027,1.12688813,2072.4,2072.1,9.8514915]
[1742984691243,1.25675202,2072.3,2072.1,8.031185]
[1742984693838,0.12986389,2072.3,2072.1,8.031185]
[1742984697584,1.25675202,2072.3,2072.1,8.031185]
[1742984698428,1.12688813,2072.2,2072.1,8.031185]
[1742984698629,1.25639235,2072.2,2072.1,8.031185]
[1742984699070,7.49084359,2072.2,2072.1,8.031185]
[1742984702033,2.66506359,2072.2,2072.1,8.031185]
[1742984702233,2.05689235,2072.2,2072.1,8.031185]
[1742984702880,0.12950422,2072.2,2072.1,8.031185]
[1742984703177,5.95250813,2072.3,2072.1,8.031185]
[1742984703386,1.25639235,2072.2,2072.1,8.031185]
[1742984710757,0.12950422,2072.2,2072.1,8.031185]
[1742984710960,1.25639235,2072.2,2072.1,8.031185]
[1742984711194,1.12688813,2072.2,2072.1,8.031185]
[1742984711409,1.2451463,2072.2,2072.1,8.031185]
[1742984712143,0.11825817,2072.2,2072.1,8.031185]
[1742984712258,0.11825817,2072.2,2072.1,10.67119723]
[1742984712587,4.82519,2072.5,2072.1,10.67119723]
[1742984712588,1.12688813,2072.3,2072.1,10.67119723]
[1742984712796,0.11825817,2072.2,2072.1,8.839185]
[1742984713181,1.12688813,2072.3,2072.1,8.839185]
[1742984713394,2.0437463,2072.2,2072.1,8.031185]
[1742984715899,6.8695263,2072.2,2072.1,8.031185]
[1742984716090,2.0437463,2072.2,2072.1,8.031185]
[1742984716504,6.8695263,2072.2,2072.1,8.031185]
[1742984717197,2.0437463,2072.2,2072.1,8.031185]
[1742984720408,2.0437463,2072.2,2072.1,9.00929091]
[1742984723115,0.11825817,2072.2,2072.1,9.00929091]
[1742984723324,4.82495,2072.6,2072.1,15.670036]
[1742984723631,1.12688813,2072.5,2072.2,4.8257]
[1742984723836,1.12688813,2072.5,2072.3,0.8138]
[1742984724415,1.12688813,2072.4,2072.3,0.8138]
[1742984725632,1.12689813,2072.9,2072.5,4.82495]
[1742984725807,1.12689813,2072.9,2072.5,9.33295]
[1742984725982,1e-05,2072.9,2072.7,5.60429]
[1742984726182,1e-05,2072.9,2072.8,4.82439]
[1742984726931,0.11214416,2072.9,2072.8,4.82439]
[1742984727111,1e-05,2072.9,2072.8,4.82439]
[1742984727330,1.23903229,2072.9,2072.8,4.512]
[1742984727515,0.11214416,2072.9,2072.8,10.94291178]
[1742984728634,1.23903229,2072.9,2072.8,10.94291178]
[1742984728980,0.11214416,2072.9,2072.8,9.33639]
[1742984729954,0.11214416,2072.9,2072.8,4.512]
[1742984730838,0.11214416,2072.9,2072.8,9.33639]
[1742984733637,0.11214416,2072.9,2072.8,10.29627407]
[1742984734246,0.11214416,2072.9,2072.8,11.88637548]
[1742984735125,0.11214416,2072.9,2072.8,26.38637548]
[1742984739355,0.11214416,2072.9,2072.8,0.95988407]
[1742984739562,0.11214416,2072.9,2072.8,4.82439]
[1742984743266,0.11214416,2072.9,2072.8,19.32439]
[1742984748361,0.11214416,2072.9,2072.8,20.10849]
[1742984748578,0.11214416,2072.9,2072.8,21.07192989]
[1742984748780,1e-05,2072.9,2072.8,24.38101824]
[1742984750475,1.24064043,2072.9,2072.8,15.46343989]
[1742984750779,1.24064043,2072.9,2072.8,5.47043989]
[1742984750981,1.24064043,2072.9,2072.8,4.507]
[1742984752079,0.11480422,2072.9,2072.8,4.507]
[1742984752491,0.11480422,2072.9,2072.8,9.33139]
[1742984753971,0.11480422,2072.9,2072.8,12.196979]
[1742984754345,0.11480422,2072.9,2072.8,12.949179]
[1742984754784,1e-05,2072.9,2072.8,12.949179]
[1742984755446,0.11490268,2072.9,2072.8,12.949179]
[1742984755646,0.11490268,2072.9,2072.8,27.449179]
[1742984755849,0.11490268,2072.9,2072.8,24.58359]
[1742984756057,0.11490268,2072.9,2072.8,9.33139]
[1742984756595,0.11490268,2072.9,2072.8,23.83139]
[1742984759083,0.11490268,2072.9,2072.8,24.78682522]
[1742984761303,0.11490268,2072.9,2072.8,10.28682522]
[1742984762212,0.11490268,2072.9,2072.8,14.07495774]
[1742984762584,1e-05,2072.9,2072.8,14.07495774]
[1742984762900,0.11409638,2072.9,2072.8,14.07495774]
[1742984765306,0.11409638,2072.9,2072.8,28.57495774]
[1742984765503,1e-05,2072.9,2072.8,28.57495774]
[1742984766003,0.11470494,2072.9,2072.8,28.57495774]
[1742984766203,1e-05,2072.9,2072.8,28.57495774]
[1742984766402,0.11470494,2072.9,2072.8,28.57495774]
[1742984766613,1e-05,2072.9,2072.8,28.57495774]
[1742984767239,1.12584621,2072.9,2072.8,5.46143522]
[1742984767417,5.94999621,2072.9,2072.8,0.95543522]
[1742984767570,5.63592,2072.8,2072.4,4.506]
[1742984767907,1.12583621,2072.5,2072.3,27.829]
[1742984768107,1.24000716,2072.4,2072.3,27.829]
[1742984768277,0.11417095,2072.4,2072.3,32.65453]
[1742984769086,2.82310298,2072.6,2072.3,32.65453]
[1742984769423,0.11197637,2072.5,2072.3,32.65453]
[1742984770323,2.01160298,2072.4,2072.1,13.641215]
[1742984770509,0.11176672,2072.3,2072.2,4.82571]
[1742984771403,7.64801298,2072.6,2072.2,4.82571]
[1742984771603,0.11132703,2072.3,2072.2,4.82571]
[1742984771815,7.64801298,2072.6,2072.2,4.82571]
[1742984772016,4.82466,2072.7,2072.2,8.62136024]
[1742984772017,0.11132703,2072.3,2072.2,8.62136024]
[1742984772214,0.8065,2072.8,2072.5,4.82501]
[1742984772421,2.01161298,2072.9,2072.6,4.82473]
[1742984772630,0.11174629,2072.7,2072.6,4.82473]
[1742984772829,2.01161298,2072.9,2072.6,4.82473]
[1742984773149,1.2466203,2072.8,2072.6,4.82473]
[1742984773439,0.11174629,2072.7,2072.6,4.82473]
[1742984773829,6.83577298,2072.9,2072.6,4.82473]
[1742984774320,0.11185108,2072.8,2072.7,4.82462]
[1742984775224,1e-05,2072.9,2072.8,4.82439]
[1742984775420,1e-05,2072.9,2072.7,4.82462]
[1742984775633,1e-05,2072.9,2072.6,9.34383]
[1742984775937,1e-05,2072.9,2072.7,5.63469416]
[1742984776144,1e-05,2072.9,2072.8,4.82439]
[1742984777843,0.11330937,2072.9,2072.8,4.82439]
[1742984780038,0.11330937,2072.9,2072.8,4.523]
[1742984781342,0.11330937,2072.9,2072.8,9.34739]
[1742984783712,0.11330937,2072.9,2072.8,10.15389]
[1742984784016,0.11330937,2072.9,2072.8,12.134209]
[1742984784431,1e-05,2072.9,2072.8,12.134209]
[1742984784628,1e-05,2072.9,2072.8,26.634209]
[1742984785028,0.11454822,2072.9,2072.8,26.634209]
[1742984785513,0.11454822,2072.9,2072.8,27.59243687]
[1742984788147,1e-05,2072.9,2072.8,27.59243687]
[1742984789134,0.11454822,2072.9,2072.8,27.59243687]
[1742984790864,0.11454822,2072.9,2072.8,22.26293687]
[1742984791173,1e-05,2072.9,2072.8,26.77693687]
[1742984791658,0.1145236,2072.9,2072.8,26.77693687]
[1742984791823,1e-05,2072.9,2072.8,26.77693687]
[1742984792023,0.1145236,2072.9,2072.8,26.77693687]
[1742984792266,1e-05,2072.9,2072.8,26.77693687]
[1742984792745,0.11476027,2072.9,2072.8,26.77693687]
[1742984794048,0.11476027,2072.9,2072.8,12.27693687]
[1742984794582,0.11476027,2072.9,2072.8,10.29661787]
[1742984794956,0.11476027,2072.9,2072.8,5.47222787]
[1742984795175,1e-05,2072.9,2072.8,5.47222787]
[1742984795353,0.11476027,2072.9,2072.8,5.47222787]
[1742984796086,0.767,2072.8,2072.4,4.82514]
[1742984796584,0.11443927,2072.7,2072.4,19.32514]
[1742984796749,0.11443927,2072.7,2072.5,4.825]
[1742984796952,0.767,2072.8,2072.5,4.825]
[1742984797249,0.11436541,2072.7,2072.4,9.34014]
[1742984797593,0.767,2072.8,2072.5,19.32497]
[1742984798092,0.11436541,2072.7,2072.5,19.32497]
[1742984798245,0.767,2072.8,2072.5,19.32497]
[1742984798593,2.01160298,2072.6,2072.5,14.5]
[1742984798890,2.82690298,2072.6,2072.5,14.5]
[1742984799249,2.94047415,2072.6,2072.5,14.5]
[1742984799776,2.94047415,2072.6,2072.3,37.16753]
[1742984800096,2.94047415,2072.6,2072.4,14.5]
[1742984800392,2.94047415,2072.6,2072.5,0.94396134]
[1742984800691,0.92887117,2072.6,2072.5,0.94396134]
[1742984800893,0.11357117,2072.6,2072.5,0.94396134]
[1742984801488,7.61205298,2072.8,2072.5,0.94396134]
[1742984801694,1.35730031,2072.7,2072.5,0.94396134]
[1742984801880,6.18196031,2072.7,2072.5,0.94396134]
[1742984802798,6.18196031,2072.7,2072.6,14.5]
[1742984803393,1.35730031,2072.7,2072.6,14.5]
[1742984806700,0.774,2072.4,2072.1,8.031185]
[1742984806862,7.61103298,2072.4,2072.1,8.031185]
[1742984807068,4.9366318,2072.3,2072.1,8.031185]
[1742984807306,4.9366318,2072.3,2072.2,14.5]
[1742984807499,6.19139828,2072.3,2072.2,14.5]
[1742984807906,6.19139828,2072.3,2072.1,8.031185]
[1742984808204,0.1109818,2072.3,2072.1,8.031185]
[1742984810509,4.9365618,2072.3,2072.1,8.031185]
[1742984810723,6.83738298,2072.2,2072.1,8.031185]
[1742984810927,7.76098014,2072.2,2072.1,8.031185]
[1742984812022,8.12646351,2072.2,2072.1,8.031185]
[1742984812204,9.90420386,2072.2,2072.1,8.031185]
[1742984825420,0.92359716,2072.2,2072.1,8.031185]
[1742984825606,0.10959716,2072.2,2072.1,12.857205]
[1742984825809,0.10959716,2072.2,2072.1,8.031185]
[1742984826014,2.79340298,2072.3,2072.1,8.031185]
[1742984826196,0.10806884,2072.2,2072.1,8.031185]
[1742984826402,4.82578,2072.2,2072.1,8.031185]
[1742984826586,4.93384884,2072.2,2072.1,8.031185]
[1742984827023,6.18915102,2072.2,2072.1,8.031185]
[1742984827927,6.55736413,2072.2,2072.1,8.031185]
[1742984828134,7.37406413,2072.2,2072.1,8.031185]
[1742984828315,10.92406413,2072.2,2072.1,8.031185]
[1742984828691,10.37406413,2072.2,2072.1,8.031185]
[1742984830423,9.55736413,2072.2,2072.1,8.031185]
[1742984835653,10.35566413,2072.2,2072.1,8.031185]
[1742984836958,10.24759529,2072.2,2072.1,8.031185]
[1742984842250,10.79759529,2072.2,2072.1,8.031185]
[1742984850067,13.50578612,2072.2,2072.1,8.031185]
[1742984850631,13.50578612,2072.2,2071.2,5.3398]
[1742984850632,4.8278,2071.4,2071.2,5.3398]
[1742984850837,6.83940298,2071.4,2071.2,5.3398]
[1742984851362,6.83940298,2071.4,2071.2,0.8148]
[1742984851579,4.82788,2071.3,2071.0,0.816]
[1742984852865,6.83940298,2071.4,2071.0,0.816]
[1742984853163,4.82791,2071.3,2071.0,0.816]
[1742984853465,4.82814,2071.2,2071.0,0.816]
[1742984853765,6.83974298,2071.2,2071.0,0.816]
[1742984855250,11.66802298,2071.2,2071.0,0.816]
[1742984855435,4.82835,2071.1,2071.0,0.816]
[1742984855762,12.91139528,2071.2,2071.0,0.816]
[1742984855937,11.66803298,2071.2,2071.0,0.816]
[1742984856265,6.83974298,2071.2,2071.0,0.816]
[1742984856662,4.82835,2071.1,2071.0,0.816]
[1742984857040,6.83977298,2071.2,2071.0,0.816]
[1742984859355,4.82817,2071.2,2071.0,0.816]
[1742984863671,4.82817,2071.2,2070.7,5.61612]
[1742984863965,4.82817,2071.2,2070.7,6.8618303]
[1742984864133,4.82844,2071.1,2070.7,6.8618303]
[1742984864335,4.82844,2071.1,2070.7,2.0326103]
[1742984864972,4.82844,2071.1,2070.7,6.8618803]
[1742984865181,4.82844,2071.1,2070.7,0.7869]
[1742984865576,4.82844,2071.1,2070.7,5.61616]
[1742984867776,6.83972298,2071.2,2070.7,5.61601]
[1742984868082,6.83972298,2071.2,2070.7,10.44515]
[1742984868253,6.83972298,2071.2,2070.9,0.97323953]
[1742984869896,6.83972298,2071.2,2070.7,5.61601]
[1742984869897,4.82835,2071.1,2070.7,5.61601]
[1742984870392,4.82835,2071.1,2070.7,0.7869]
[1742984870876,4.82835,2071.1,2070.7,5.61615]
[1742984871251,8.08309428,2071.2,2070.7,5.61605]
[1742984871456,4.82835,2071.1,2070.8,0.97623709]
[1742984872292,8.08309428,2071.2,2070.8,0.97623709]
[1742984872497,8.08309428,2071.2,2070.8,5.80528709]
[1742984872697,8.08309428,2071.2,2070.8,4.82905]
[1742984873099,8.08309428,2071.2,2070.7,5.61604]
[1742984873391,8.08309428,2071.2,2070.7,5.61603]
[1742984873588,8.08309428,2071.2,2070.7,10.44521]
[1742984874916,8.08309428,2071.2,2070.7,24.94521]
[1742984875225,3.25492428,2071.2,2070.8,4.82896]
[1742984875514,1.2433213,2071.2,2070.9,5.63361]
[1742984875706,1.2433213,2071.2,2070.9,0.8048]
[1742984878222,6.0714413,2071.2,2070.9,0.8048]
[1742984878385,1.2433213,2071.2,2070.9,0.8048]
[1742984879317,6.0714813,2071.2,2070.9,0.8048]
[1742984879829,1.2433213,2071.2,2070.9,0.8048]
[1742984881316,4.82795,2071.3,2070.9,0.8048]
[1742984881517,5.9558039,2071.3,2070.9,0.8048]
[1742984882396,4.82795,2071.3,2070.9,0.8048]
[1742984883125,4.82795,2071.3,2070.9,15.3048]
[1742984883330,4.82795,2071.3,2070.9,0.8048]
[1742984883524,4.82767,2071.4,2070.9,0.8048]
[1742984883525,0.8108,2071.6,2071.2,4.82811]
[1742984883715,4.82697,2071.7,2071.3,0.8109]
[1742984884224,4.82697,2071.7,2071.3,5.63875]
[1742984884519,13.48612,2071.8,2071.3,5.63875]
[1742984884821,4.82655,2071.9,2071.4,4.82763]
[1742984884998,7.59790943,2072.2,2071.6,4.82709]
[1742984885320,10.13496,2072.1,2071.6,4.82709]
[1742984885520,4.82641,2072.0,2071.5,5.6381]
[1742984885719,9.65284,2072.0,2071.5,5.6381]
[1742984885922,11.66684943,2072.0,2071.5,5.6381]
[1742984886120,8.13117237,2072.0,2071.5,5.6381]
[1742984886330,8.13117237,2072.0,2071.6,4.82717]
[1742984886489,8.13117237,2072.0,2071.5,5.6381]
[1742984886690,3.30476237,2072.0,2071.6,4.82716]
[1742984886899,1.29075294,2072.0,2071.7,5.65876]
[1742984887516,0.48258,2072.1,2071.7,5.65876]
[1742984887724,5.30868,2072.1,2071.7,0.8319]
[1742984888412,5.66937825,2072.1,2071.7,0.8319]
[1742984888934,5.30868,2072.1,2071.7,0.8319]
[1742984890712,10.1349,2072.1,2071.7,0.8319]
[1742984890904,5.30868,2072.1,2071.7,0.8319]